[Event "FIDE World Rapid-ch Open 2018"]
[White "Lomasov, Semyon"]
[Black "Pantsulaia, Levan"]
[Site "St. Petersburg"]
[Round "14.33"]
[Annotator "ChessBase"]
[Result "1/2-1/2"]
[Date "2018.12.28"]
[WhiteElo "2553"]
[BlackElo "2597"]
[PlyCount "122"]
[TimeControl "900+10"]

1. e4 {[%emt 0:0:0]} c5 {[%emt 0:0:0]} 2. Nf3 {[%emt 0:0:0]} e6 {[%emt 0:0:0]} 3. d4 {[%emt 0:0:0]} cxd4 {[%emt 0:0:0]} 4. Nxd4 {[%emt 0:0:0]} a6 {[%emt 0:0:0]} 5. Bd3 {[%emt 0:0:1]} Bc5 {[%emt 0:0:19]} 6. Nb3 {[%emt 0:0:4]
} Ba7 {[%emt 0:0:2]} 7. Qe2 {[%emt 0:0:12]} Nc6 {[%emt 0:0:0]} 8. Be3 {[%emt 0:0:5]} d6 {[%emt 0:0:9]} 9. c4 {[%emt 0:0:10]} Nf6 {[%emt 0:0:5]
} 10. Nc3 {[%emt 0:0:14]} 0-0 {[%emt 0:0:3]} 11. 0-0 {[%emt 0:0:0]} h6 {[%emt 0:0:31]} 12. Rfd1 {[%emt 0:0:34]} e5 {[%emt 0:0:22]} 13. Rac1 {[%emt 0:0:40]} Be6 {[%emt 0:0:5]} 14. Nd5 {[%emt 0:0:40]} Nd7 {[%emt 0:0:5]
} 15. Bxa7 {[%emt 0:1:34]} Rxa7 {[%emt 0:0:2]} 16. Qe3 {[%emt 0:0:6]
} b6 {[%emt 0:0:12]} 17. Bf1 {[%emt 0:0:9]} Qb8 {[%emt 0:0:0]} 18. Na1 {[%emt 0:3:30]} Rc8 {[%emt 0:2:44]} 19. Nc2 {[%emt 0:0:13]} Kf8 {[%emt 0:0:2]} 20. b4 {[%emt 0:0:24]} a5 {[%emt 0:1:43]} 21. a3 {[%emt 0:0:0]} Ne7 {[%emt 0:0:9]} 22. Qb3 {[%emt 0:0:41]} axb4 {[%emt 0:0:56]} 23. axb4 {[%emt 0:0:2]} Bxd5 {[%emt 0:0:1]} 24. cxd5 {[%emt 0:1:28]} Rac7 {[%emt 0:0:3]
} 25. Qb2 {[%emt 0:0:5]} f5 {[%emt 0:1:33]} 26. exf5 {[%emt 0:0:0]} Nxf5 {[%emt 0:0:4]} 27. Ba6 {[%emt 0:0:42]} Rd8 {[%emt 0:0:2]} 28. Bb5 {[%emt 0:0:1]} Nf6 {[%emt 0:0:4]} 29. Bc6 {[%emt 0:0:4]} b5 {[%emt 0:0:0]} 30. Qb3 {[%emt 0:1:38]} Qb6 {[%emt 0:0:39]} 31. Qd3 {[%emt 0:0:55]} Ne7 {[%emt 0:0:24]} 32. Na3 {[%emt 0:0:50]} Nxc6 {[%emt 0:0:31]} 33. dxc6 {[%emt 0:0:51]
} Rxc6 {[%emt 0:0:5]} 34. Rxc6 {[%emt 0:0:19]} Qxc6 {[%emt 0:0:0]} 35. Nxb5 {[%emt 0:0:11]} d5 {[%emt 0:0:8]} 36. Nc3 {[%emt 0:0:11]} Rc8 {[%emt 0:1:31]} 37. Ne2 {[%emt 0:0:7]} Qc4 {[%emt 0:0:48]} 38. Qe3 {[%emt 0:0:7]
} Kf7 {[%emt 0:0:57]} 39. f4 {[%emt 0:2:5]} d4 {[%emt 0:0:50]
} 40. Qd3 {[%emt 0:0:2]} Qxd3 {[%emt 0:1:32]} 41. Rxd3 {[%emt 0:0:1]} Ke6 {[%emt 0:0:1]} 42. fxe5 {[%emt 0:0:10]} Kxe5 {[%emt 0:0:1]} 43. Nxd4 {[%emt 0:0:37]
} Ke4 {[%emt 0:1:1]} 44. Rd1 {[%emt 0:0:13]} Ng4 {[%emt 0:0:0]} 45. Nf3 {[%emt 0:0:10]} Rc2 {[%emt 0:0:11]} 46. h3 {[%emt 0:0:28]} Ne3 {[%emt 0:0:16]} 47. Rd4+ {[%emt 0:0:5]} Kf5 {[%emt 0:0:1]} 48. Rd2 {[%emt 0:0:4]
} Rc1+ {[%emt 0:0:49]} 49. Kf2 {[%emt 0:0:1]} Nd1+ {[%emt 0:0:0]} 50. Kg3 {[%emt 0:0:12]} Nc3 {[%emt 0:0:3]} 51. Rb2 {[%emt 0:0:25]} g5 {[%emt 0:0:38]} 52. b5 {[%emt 0:0:14]} Ne4+ {[%emt 0:0:13]} 53. Kh2 {[%emt 0:0:1]
} h5 {[%emt 0:0:4]} 54. Nd2 {[%emt 0:0:20]} Nxd2 {[%emt 0:0:0]} 55. Rxd2 {[%emt 0:0:1]} Rb1 {[%emt 0:0:1]} 56. Rd5+ {[%emt 0:0:4]} Kf4 {[%emt 0:0:7]} 57. g3+ {[%emt 0:0:0]} Kf3 {[%emt 0:0:4]} 58. Rf5+ {[%emt 0:0:26]
} Ke3 {[%emt 0:0:2]} 59. Re5+ Kf3 {[%emt 0:0:0]} 60. Rf5+ {[%emt 0:0:12]
} Ke3 {[%emt 0:0:0]} 61. Rxg5 Rb2+ 1/2-1/2

[Event "FIDE World Rapid-ch Open 2018"]
[White "Demchenko, Anton"]
[Black "Tang, Andrew"]
[Site "St. Petersburg"]
[Round "14.34"]
[Annotator "ChessBase"]
[Result "1-0"]
[Date "2018.12.28"]
[WhiteElo "2679"]
[BlackElo "2487"]
[PlyCount "123"]
[TimeControl "900+10"]

1. e4 {[%emt 0:0:0]} e5 {[%emt 0:0:0]} 2. Nf3 {[%emt 0:0:0]} Nc6 {[%emt 0:0:0]
} 3. Bc4 {[%emt 0:0:0]} Bc5 {[%emt 0:0:0]} 4. d3 {[%emt 0:0:0]} Nf6 {[%emt 0:0:0]} 5. Bg5 {[%emt 0:0:0]} h6 {[%emt 0:0:0]} 6. Bh4 {[%emt 0:0:0]
} g5 {[%emt 0:0:2]} 7. Bg3 {[%emt 0:0:0]} d6 {[%emt 0:0:2]} 8. c3 {[%emt 0:0:13]} a6 {[%emt 0:0:30]} 9. a4 {[%emt 0:0:22]} Bg4 {[%emt 0:0:0]} 10. Nbd2 {[%emt 0:0:21]} Nh5 {[%emt 0:0:35]} 11. Nf1 {[%emt 0:5:3]} Nf4 {[%emt 0:1:42]} 12. Bxf4 {[%emt 0:0:3]} gxf4 {[%emt 0:0:2]} 13. Qe2 {[%emt 0:0:31]
} Qf6 {[%emt 0:0:35]} 14. N1d2 {[%emt 0:0:48]} Rg8 {[%emt 0:0:0]} 15. Bd5 {[%emt 0:2:26]} Ba7 {[%emt 0:1:53]} 16. 0-0-0 {[%emt 0:0:49]} Bd7 {[%emt 0:2:10]} 17. Rhg1 {[%emt 0:0:28]} 0-0-0 {[%emt 0:0:18]} 18. Kb1 {[%emt 0:1:46]
} Rg6 {[%emt 0:0:44]} 19. g3 {[%emt 0:0:21]} Rdg8 {[%emt 0:0:0]} 20. Nh4 {[%emt 0:0:56]} Rg5 {[%emt 0:0:33]} 21. Ndf3 {[%emt 0:0:30]} Ne7 {[%emt 0:2:52]} 22. Nxg5 {[%emt 0:0:40]} hxg5 {[%emt 0:0:1]} 23. Nf3 {[%emt 0:0:14]
} g4 {[%emt 0:0:8]} 24. Nd2 {[%emt 0:0:33]} f3 {[%emt 0:0:5]
} 25. Qe1 {[%emt 0:0:4]} Nxd5 {[%emt 0:0:27]} 26. exd5 {[%emt 0:0:1]} Bxa4 {[%emt 0:0:1]} 27. Rc1 {[%emt 0:0:32]} Qg6 {[%emt 0:0:35]} 28. Qf1 {[%emt 0:0:2]
} Bb5 {[%emt 0:1:33]} 29. c4 {[%emt 0:0:48]} Bd7 {[%emt 0:0:0]} 30. b4 {[%emt 0:0:19]} Qh6 {[%emt 0:0:58]} 31. Rc2 {[%emt 0:0:35]} Bf5 {[%emt 0:0:19]} 32. Ne4 {[%emt 0:0:11]} Bd4 {[%emt 0:0:24]} 33. Ka2 {[%emt 0:1:0]
} Kb8 {[%emt 0:0:15]} 34. Qb1 {[%emt 0:0:6]} Bd7 {[%emt 0:0:0]} 35. Qb3 {[%emt 0:0:7]} f5 {[%emt 0:0:28]} 36. Nc3 {[%emt 0:0:1]} f4 {[%emt 0:0:40]
} 37. Rb1 {[%emt 0:0:38]} Bf5 {[%emt 0:0:3]} 38. Ne4 {[%emt 0:0:0]} Qxh2 {[%emt 0:0:17]} 39. b5 {[%emt 0:0:14]} a5 {[%emt 0:0:13]} 40. b6 {[%emt 0:0:1]} cxb6 {[%emt 0:0:49]} 41. Nxd6 {[%emt 0:0:13]} Qh7 {[%emt 0:0:1]
} 42. Nxf5 {[%emt 0:0:16]} Qxf5 {[%emt 0:0:2]} 43. c5 {[%emt 0:0:1]
} Qf7 {[%emt 0:0:36]} 44. gxf4 {[%emt 0:0:15]} bxc5 {[%emt 0:0:0]} 45. fxe5 {[%emt 0:0:7]} g3 {[%emt 0:0:4]} 46. e6 {[%emt 0:0:11]} Qc7 {[%emt 0:0:15]} 47. d6 {[%emt 0:0:24]} Qc6 {[%emt 0:0:0]} 48. e7 {[%emt 0:0:4]
} Re8 {[%emt 0:0:9]} 49. fxg3 {[%emt 0:0:3]} f2 {[%emt 0:0:0]} 50. Re2 {[%emt 0:0:34]} Kc8 {[%emt 0:0:19]} 51. Qe6+ {[%emt 0:0:2]} Kb8 {[%emt 0:0:1]} 52. Qb3 {[%emt 0:0:2]} Kc8 {[%emt 0:0:3]} 53. Rxf2 {[%emt 0:0:21]
} Bxf2 {[%emt 0:0:25]} 54. Qxb7+ {[%emt 0:0:1]} Qxb7 {[%emt 0:0:0]} 55. Rxb7 {[%emt 0:0:1]} Kxb7 {[%emt 0:0:2]} 56. d7 {[%emt 0:0:0]} Rxe7 {[%emt 0:0:6]} 57. d8=Q {[%emt 0:0:2]} Re2+ {[%emt 0:0:8]} 58. Kb3 {[%emt 0:0:3]
} Bxg3 {[%emt 0:0:19]} 59. Qd5+ {[%emt 0:0:28]} Kb6 {[%emt 0:0:0]} 60. Qf3 {[%emt 0:0:1]} a4+ {[%emt 0:0:41]} 61. Kxa4 {[%emt 0:0:27]} Rb2 62. Qf6+ {[%emt 0:0:9]} 1-0

[Event "FIDE World Rapid-ch Open 2018"]
[White "Hovhannisyan, Robert"]
[Black "Grigoriants, Sergey"]
[Site "St. Petersburg"]
[Round "14.35"]
[Annotator "ChessBase"]
[Result "1/2-1/2"]
[Date "2018.12.28"]
[WhiteElo "2637"]
[BlackElo "2540"]
[PlyCount "119"]
[TimeControl "900+10"]

1. e4 {[%emt 0:0:0]} e5 {[%emt 0:0:0]} 2. Nf3 {[%emt 0:0:0]} Nc6 {[%emt 0:0:0]
} 3. Bb5 {[%emt 0:0:0]} a6 {[%emt 0:0:1]} 4. Ba4 {[%emt 0:0:0]} Nf6 {[%emt 0:0:3]} 5. 0-0 {[%emt 0:0:0]} b5 {[%emt 0:0:28]} 6. Bb3 {[%emt 0:0:2]
} Bc5 {[%emt 0:0:1]} 7. Nc3 {[%emt 0:0:10]} d6 {[%emt 0:1:27]
} 8. Nd5 {[%emt 0:0:37]} h6 {[%emt 0:0:14]} 9. c3 {[%emt 0:0:20]} 0-0 {[%emt 0:1:2]
} 10. d4 {[%emt 0:0:21]} Ba7 {[%emt 0:0:25]} 11. Nxf6+ {[%emt 0:0:49]
} Qxf6 {[%emt 0:0:2]} 12. Bd5 {[%emt 0:0:5]} Bd7 {[%emt 0:0:0]} 13. Be3 {[%emt 0:0:4]} Rad8 {[%emt 0:3:12]} 14. a4 {[%emt 0:1:9]} exd4 {[%emt 0:0:16]} 15. Nxd4 {[%emt 0:0:52]} Nxd4 {[%emt 0:0:22]} 16. cxd4 {[%emt 0:0:2]} bxa4 {[%emt 0:0:16]} 17. Rc1 {[%emt 0:2:48]} c5 {[%emt 0:0:0]} 18. dxc5 {[%emt 0:0:13]} Bxc5 {[%emt 0:0:3]} 19. Bxc5 {[%emt 0:0:31]} dxc5 {[%emt 0:0:1]} 20. Qd2 {[%emt 0:0:33]} Rb8 {[%emt 0:0:38]} 21. Rc3 {[%emt 0:0:4]
} Be6 {[%emt 0:0:29]} 22. Bxe6 {[%emt 0:1:50]} Qxe6 {[%emt 0:0:0]} 23. f3 {[%emt 0:0:41]} Rfd8 {[%emt 0:2:30]} 24. Qf2 {[%emt 0:0:16]} Qe5 {[%emt 0:1:6]} 25. Rc2 {[%emt 0:2:9]} Rd3 {[%emt 0:1:21]} 26. Qg3 {[%emt 0:2:35]
} Qd4+ {[%emt 0:0:22]} 27. Qf2 {[%emt 0:0:3]} Rd1 {[%emt 0:0:0]} 28. Qxd4 {[%emt 0:1:19]} Rxf1+ {[%emt 0:0:3]} 29. Kxf1 {[%emt 0:0:1]} cxd4 {[%emt 0:0:1]} 30. Kf2 {[%emt 0:1:34]} g5 {[%emt 0:0:29]} 31. Kg3 {[%emt 0:0:26]
} Kg7 {[%emt 0:0:20]} 32. Rc4 {[%emt 0:0:26]} d3 {[%emt 0:0:0]} 33. Rd4 {[%emt 0:0:1]} Rb3 {[%emt 0:0:33]} 34. h4 {[%emt 0:0:11]} gxh4+ 35. Kxh4 {[%emt 0:0:18]} Rxb2 {[%emt 0:0:52]} 36. Rxd3 {[%emt 0:0:2]} Rxg2 {[%emt 0:0:4]} 37. Ra3 {[%emt 0:0:3]} Rg5 {[%emt 0:0:16]} 38. Rxa4 {[%emt 0:0:7]
} a5 {[%emt 0:0:0]} 39. Rc4 {[%emt 0:0:29]} Rg6 {[%emt 0:0:0]} 40. Ra4 {[%emt 0:0:2]} Ra6 {[%emt 0:0:4]} 41. Kh5 {[%emt 0:0:5]} Ra7 {[%emt 0:0:20]} 42. e5 {[%emt 0:0:7]} Ra6 {[%emt 0:0:10]} 43. f4 {[%emt 0:0:0]} Kf8 {[%emt 0:0:12]} 44. f5 {[%emt 0:0:8]} Ke7 {[%emt 0:0:1]} 45. Kg4 {[%emt 0:0:11]} Kd7 {[%emt 0:0:7]} 46. Kh5 {[%emt 0:0:4]} Ke7 {[%emt 0:0:24]
} 47. Kg4 {[%emt 0:0:2]} Kd7 {[%emt 0:0:10]} 48. Kh5 {[%emt 0:0:0]} Kc6 {[%emt 0:0:1]} 49. e6 {[%emt 0:0:27]} fxe6 {[%emt 0:0:3]} 50. f6 {[%emt 0:0:5]} Kb5 {[%emt 0:0:11]} 51. Rf4 {[%emt 0:0:28]} Ra8 {[%emt 0:0:0]} 52. f7 {[%emt 0:0:2]} a4 {[%emt 0:0:14]} 53. f8=Q {[%emt 0:0:19]} Rxf8 {[%emt 0:0:1]} 54. Rxf8 {[%emt 0:0:2]} a3 {[%emt 0:0:1]} 55. Kxh6 {[%emt 0:0:22]
} Kb4 {[%emt 0:0:4]} 56. Kg5 {[%emt 0:0:3]} a2 {[%emt 0:0:0]} 57. Ra8 {[%emt 0:0:2]} Kb3 {[%emt 0:0:1]} 58. Kf6 {[%emt 0:0:1]} Kb2 {[%emt 0:0:1]} 59. Rxa2+ {[%emt 0:0:2]} Kxa2 {[%emt 0:0:1]} 60. Kxe6 {[%emt 0:0:1]
} 1/2-1/2

[Event "FIDE World Rapid-ch Open 2018"]
[White "Mchedlishvili, Mikheil"]
[Black "Bazeev, German"]
[Site "St. Petersburg"]
[Round "14.36"]
[Annotator "ChessBase"]
[Result "1-0"]
[Date "2018.12.28"]
[WhiteElo "2610"]
[BlackElo "2416"]
[PlyCount "61"]
[TimeControl "900+10"]

1. d4 {[%emt 0:0:0]} Nf6 {[%emt 0:0:0]} 2. Bg5 {[%emt 0:0:0]} c5 {[%emt 0:0:0]
} 3. d5 {[%emt 0:0:1]} d6 {[%emt 0:0:0]} 4. Nc3 {[%emt 0:0:0]} h6 {[%emt 0:0:31]} 5. Bf4 {[%emt 0:0:32]} g5 {[%emt 0:0:4]} 6. Bc1 {[%emt 0:0:18]
} Bf5 {[%emt 0:0:11]} 7. f3 {[%emt 0:0:9]} Bg7 {[%emt 0:0:8]
} 8. e4 {[%emt 0:0:4]} Bg6 {[%emt 0:0:1]} 9. Nge2 {[%emt 0:0:30]} Nbd7 {[%emt 0:0:1]
} 10. Ng3 {[%emt 0:2:15]} Ne5 {[%emt 0:0:5]} 11. Bb5+ {[%emt 0:0:30]
} Kf8 {[%emt 0:0:1]} 12. Be2 {[%emt 0:0:22]} Qd7 {[%emt 0:0:0]} 13. h4 {[%emt 0:1:37]} gxh4 {[%emt 0:6:38]} 14. Rxh4 {[%emt 0:0:1]} h5 {[%emt 0:0:12]} 15. f4 {[%emt 0:0:17]} Neg4 {[%emt 0:0:2]} 16. f5 {[%emt 0:0:0]} Bh7 {[%emt 0:0:3]} 17. Bxg4 {[%emt 0:0:19]} Nxg4 {[%emt 0:0:13]} 18. Rxh5 {[%emt 0:2:52]} Bxc3+ {[%emt 0:0:50]} 19. bxc3 {[%emt 0:0:4]} Nf6 {[%emt 0:0:1]} 20. Rh3 {[%emt 0:0:31]} Rg8 {[%emt 0:0:35]} 21. Qd3 {[%emt 0:0:45]
} Rg4 {[%emt 0:0:8]} 22. c4 {[%emt 0:1:0]} Nxe4 {[%emt 0:0:0]} 23. Rxh7 {[%emt 0:0:17]} Nxg3 {[%emt 0:0:5]} 24. Rh8+ {[%emt 0:0:50]} Kg7 {[%emt 0:0:0]} 25. Bb2+ {[%emt 0:0:2]} f6 {[%emt 0:0:1]} 26. Rxa8 {[%emt 0:0:1]
} Re4+ {[%emt 0:0:30]} 27. Kd1 {[%emt 0:1:8]} Qxf5 {[%emt 0:0:0]} 28. Qxg3+ {[%emt 0:0:37]} Rg4 {[%emt 0:0:1]} 29. Qd3 {[%emt 0:0:13]
} Qh5 {[%emt 0:0:42]} 30. Kc1 {[%emt 0:1:15]} Rxg2 {[%emt 0:0:33]} 31. Bc3 {[%emt 0:0:22]
} 1-0

[Event "FIDE World Rapid-ch Open 2018"]
[White "Steinberg, Nitzan"]
[Black "Alekseenko, Kirill"]
[Site "St. Petersburg"]
[Round "14.37"]
[Annotator "ChessBase"]
[Result "0-1"]
[Date "2018.12.28"]
[WhiteElo "2532"]
[BlackElo "2638"]
[PlyCount "88"]
[TimeControl "900+10"]

1. e4 {[%emt 0:0:0]} c5 {[%emt 0:0:0]} 2. Nf3 {[%emt 0:0:0]} Nc6 {[%emt 0:0:0]
} 3. d4 {[%emt 0:0:0]} cxd4 {[%emt 0:0:0]} 4. Nxd4 {[%emt 0:0:0]} Nf6 {[%emt 0:0:0]} 5. Nc3 {[%emt 0:0:1]} d6 {[%emt 0:0:2]} 6. Bg5 {[%emt 0:0:3]} e6 {[%emt 0:0:3]} 7. Qd2 {[%emt 0:0:2]} a6 {[%emt 0:0:4]
} 8. 0-0-0 {[%emt 0:0:7]} Bd7 {[%emt 0:0:1]} 9. f3 {[%emt 0:0:6]} Be7 {[%emt 0:0:2]
} 10. h4 {[%emt 0:0:26]} Rc8 {[%emt 0:0:4]} 11. Kb1 {[%emt 0:0:0]} b5 {[%emt 0:0:2]} 12. Nxc6 {[%emt 0:0:20]} Bxc6 {[%emt 0:0:2]} 13. Ne2 {[%emt 0:0:7]} 0-0 {[%emt 0:0:17]} 14. Nd4 {[%emt 0:0:13]} Bb7 {[%emt 0:0:1]
} 15. g4 {[%emt 0:1:35]} Nd7 {[%emt 0:0:16]} 16. Qe3 {[%emt 0:0:0]} Ne5 {[%emt 0:0:13]} 17. Bxe7 {[%emt 0:1:3]} Qxe7 {[%emt 0:0:2]} 18. g5 {[%emt 0:0:1]} Qc7 {[%emt 0:0:53]} 19. Be2 {[%emt 0:3:19]} d5 {[%emt 0:1:11]
} 20. exd5 {[%emt 0:0:24]} Bxd5 {[%emt 0:0:13]} 21. h5 {[%emt 0:0:10]
} Nc4 {[%emt 0:2:29]} 22. Bxc4 {[%emt 0:0:20]} Qxc4 {[%emt 0:0:0]} 23. b3 {[%emt 0:0:6]} Qc7 {[%emt 0:0:8]} 24. Rhe1 {[%emt 0:0:39]} f6 {[%emt 0:2:3]} 25. f4 {[%emt 0:0:34]} b4 {[%emt 0:2:56]} 26. Re2 {[%emt 0:0:55]
} Rce8 {[%emt 0:0:23]} 27. Qd2 {[%emt 0:0:57]} fxg5 {[%emt 0:0:0]} 28. fxg5 {[%emt 0:0:3]} Qf4 {[%emt 0:0:27]} 29. Qxb4 {[%emt 0:1:33]
} Qxg5 {[%emt 0:0:2]} 30. Rde1 {[%emt 0:0:13]} Qh4 {[%emt 0:2:15]} 31. Qb6 {[%emt 0:0:57]} Rb8 {[%emt 0:0:29]} 32. Qa7 {[%emt 0:1:33]} Ra8 {[%emt 0:0:0]} 33. Qb6 {[%emt 0:0:52]} Rfb8 {[%emt 0:0:23]} 34. Qc5 {[%emt 0:0:2]} Rc8 {[%emt 0:0:2]} 35. Qb6 {[%emt 0:0:20]} Rab8 {[%emt 0:0:6]} 36. Qa7 {[%emt 0:0:12]
} Rb7 {[%emt 0:0:8]} 37. Qxa6 {[%emt 0:0:4]} Qxd4 {[%emt 0:0:0]} 38. Rxe6 {[%emt 0:0:1]} Rbb8 {[%emt 0:0:49]} 39. Re7 {[%emt 0:0:14]
} Qd2 {[%emt 0:0:59]} 40. R1e2 {[%emt 0:0:21]} Qd1+ {[%emt 0:0:10]} 41. Kb2 {[%emt 0:0:1]} Qd4+ {[%emt 0:0:7]} 42. Kb1 {[%emt 0:0:1]} Bc4 {[%emt 0:0:0]} 43. Qa4 {[%emt 0:0:29]} Qd1+ {[%emt 0:0:6]} 44. Kb2 {[%emt 0:0:1]} Bxe2 {[%emt 0:0:7]} 0-1

[Event "FIDE World Rapid-ch Open 2018"]
[White "Sjugirov, Sanan"]
[Black "Indjic, Aleksandar"]
[Site "St. Petersburg"]
[Round "14.38"]
[Annotator "ChessBase"]
[Result "0-1"]
[Date "2018.12.28"]
[WhiteElo "2663"]
[BlackElo "2620"]
[PlyCount "86"]
[TimeControl "900+10"]

1. d4 {[%emt 0:0:0]} Nf6 {[%emt 0:0:0]} 2. c4 {[%emt 0:0:0]} e6 {[%emt 0:0:0]} 3. Nc3 {[%emt 0:0:0]} c5 {[%emt 0:0:0]} 4. d5 {[%emt 0:0:0]} exd5 {[%emt 0:0:0]} 5. cxd5 {[%emt 0:0:0]} d6 {[%emt 0:0:1]} 6. e4 {[%emt 0:0:0]} g6 {[%emt 0:0:2]} 7. f4 {[%emt 0:0:7]} Bg7 {[%emt 0:0:2]} 8. Bb5+ {[%emt 0:0:3]} Nfd7 {[%emt 0:0:2]} 9. a4 {[%emt 0:0:2]} Qh4+ {[%emt 0:0:0]} 10. g3 {[%emt 0:1:0]} Qd8 {[%emt 0:0:3]} 11. Nf3 {[%emt 0:0:15]} 0-0 {[%emt 0:0:3]} 12. 0-0 {[%emt 0:0:20]} Na6 {[%emt 0:0:2]} 13. f5 {[%emt 0:0:0]} Nc7 {[%emt 0:2:1]} 14. Bf4 {[%emt 0:1:23]} Nf6 {[%emt 0:0:10]} 15. Bc4 {[%emt 0:1:8]} Nce8 {[%emt 0:1:3]} 16. Qd3 {[%emt 0:1:34]} Kh8 {[%emt 0:1:21]
} 17. Rae1 {[%emt 0:0:32]} Ng4 {[%emt 0:1:3]} 18. Qd2 {[%emt 0:1:9]
} gxf5 {[%emt 0:0:38]} 19. exf5 {[%emt 0:0:59]} Bxf5 {[%emt 0:0:0]} 20. h3 {[%emt 0:0:16]} Ngf6 {[%emt 0:0:6]} 21. g4 {[%emt 0:0:23]} Bg6 {[%emt 0:0:2]} 22. Bh6 {[%emt 0:0:12]} a6 {[%emt 0:0:18]} 23. Bxg7+ {[%emt 0:0:6]
} Kxg7 {[%emt 0:0:3]} 24. Qf4 {[%emt 0:0:29]} h6 {[%emt 0:0:0]} 25. h4 {[%emt 0:1:59]} Qd7 {[%emt 0:0:6]} 26. h5 {[%emt 0:0:31]} Bh7 {[%emt 0:0:15]
} 27. Re2 {[%emt 0:0:46]} Nxg4 {[%emt 0:0:27]} 28. Rg2 {[%emt 0:0:55]
} f5 {[%emt 0:0:1]} 29. Ne5 {[%emt 0:3:11]} dxe5 {[%emt 0:0:0]} 30. Rxg4+ {[%emt 0:0:3]} Kh8 {[%emt 0:0:1]} 31. Qxe5+ {[%emt 0:0:19]} Nf6 {[%emt 0:0:1]} 32. Rg2 {[%emt 0:0:6]} Rae8 {[%emt 0:0:1]} 33. Qf4 {[%emt 0:0:1]
} Rg8 {[%emt 0:0:46]} 34. d6 {[%emt 0:0:23]} Rxg2+ {[%emt 0:0:0]} 35. Kxg2 {[%emt 0:0:0]} Qg7+ {[%emt 0:0:4]} 36. Qg3 {[%emt 0:0:15]} Ng4 {[%emt 0:0:1]} 37. Kh3 {[%emt 0:0:51]} Qd4 {[%emt 0:4:12]} 38. Rf4 {[%emt 0:0:4]
} Qxd6 {[%emt 0:0:10]} 39. Nd5 {[%emt 0:0:4]} b5 {[%emt 0:0:0]} 40. axb5 {[%emt 0:0:2]} axb5 {[%emt 0:0:2]} 41. Qc3+ {[%emt 0:0:32]} Re5 {[%emt 0:0:23]} 42. Ba2 {[%emt 0:0:15]} c4 {[%emt 0:0:2]} 43. Rd4 {[%emt 0:0:4]
} Re3+ {[%emt 0:0:17]} 0-1

[Event "FIDE World Rapid-ch Open 2018"]
[White "Predke, Alexandr"]
[Black "Bocharov, Dmitry"]
[Site "St. Petersburg"]
[Round "14.39"]
[Annotator "ChessBase"]
[Result "1/2-1/2"]
[Date "2018.12.28"]
[WhiteElo "2622"]
[BlackElo "2533"]
[PlyCount "137"]
[TimeControl "900+10"]

1. e4 {[%emt 0:0:0]} c5 {[%emt 0:0:0]} 2. Nc3 {[%emt 0:0:0]} d6 {[%emt 0:0:0]} 3. Nge2 {[%emt 0:0:0]} a6 {[%emt 0:0:23]} 4. g3 {[%emt 0:0:0]} e5 {[%emt 0:0:7]} 5. Bg2 {[%emt 0:0:4]} g6 {[%emt 0:0:4]} 6. d3 {[%emt 0:0:0]} Bg7 {[%emt 0:0:9]} 7. Be3 {[%emt 0:0:24]} Ne7 {[%emt 0:0:12]} 8. Qd2 {[%emt 0:0:4]
} Nbc6 {[%emt 0:0:43]} 9. Bh6 {[%emt 0:0:27]} 0-0 {[%emt 0:0:0]} 10. h4 {[%emt 0:0:11]} Bxh6 {[%emt 0:0:5]} 11. Qxh6 {[%emt 0:0:3]} f6 {[%emt 0:0:5]} 12. Qd2 {[%emt 0:1:59]} Be6 {[%emt 0:2:21]} 13. h5 {[%emt 0:0:0]} g5 {[%emt 0:0:6]} 14. h6 {[%emt 0:1:28]} g4 {[%emt 0:1:46]} 15. Nd5 {[%emt 0:1:4]} Kh8 {[%emt 0:2:5]} 16. 0-0-0 {[%emt 0:1:20]} Nd4 {[%emt 0:0:0]} 17. Kb1 {[%emt 0:1:48]} b5 {[%emt 0:1:37]} 18. Nxd4 {[%emt 0:0:50]} cxd4 {[%emt 0:0:7]} 19. f4 {[%emt 0:0:3]} Bxd5 {[%emt 0:0:43]} 20. exd5 {[%emt 0:0:5]
} Nf5 {[%emt 0:0:1]} 21. fxe5 {[%emt 0:1:58]} fxe5 {[%emt 0:0:0]} 22. Qe1 {[%emt 0:0:34]} Ne3 {[%emt 0:0:47]} 23. Rd2 {[%emt 0:0:1]} Qf6 {[%emt 0:1:32]} 24. Be4 {[%emt 0:0:7]} Ra7 {[%emt 0:0:6]} 25. Re2 {[%emt 0:1:5]
} Raf7 {[%emt 0:0:26]} 26. c3 {[%emt 0:0:37]} Qg5 {[%emt 0:0:0]} 27. Qd2 {[%emt 0:0:30]} Rf6 {[%emt 0:0:49]} 28. cxd4 {[%emt 0:0:11]} exd4 {[%emt 0:0:2]} 29. a3 {[%emt 0:0:15]} Qe5 {[%emt 0:0:5]} 30. Qb4 {[%emt 0:1:18]
} Nxd5 {[%emt 0:0:21]} 31. Qa5 {[%emt 0:1:0]} Ne3 {[%emt 0:0:0]} 32. Qc7 {[%emt 0:0:14]} R6f7 {[%emt 0:1:18]} 33. Rf2 {[%emt 0:0:1]} Qe6 {[%emt 0:0:22]} 34. Rxf7 {[%emt 0:0:22]} Qxf7 {[%emt 0:0:2]} 35. Qxd6 {[%emt 0:0:1]
} Qf6 {[%emt 0:0:1]} 36. Qd7 {[%emt 0:0:11]} Rf7 {[%emt 0:0:0]} 37. Qc8+ {[%emt 0:0:10]} Rf8 {[%emt 0:0:2]} 38. Qb7 {[%emt 0:0:2]} Rf7 {[%emt 0:0:3]} 39. Rc1 {[%emt 0:0:10]} Nc4 {[%emt 0:0:19]} 40. Qc8+ {[%emt 0:0:35]
} Rf8 {[%emt 0:0:2]} 41. Qxg4 {[%emt 0:0:8]} Nd2+ {[%emt 0:0:0]} 42. Kc2 {[%emt 0:0:5]} Nxe4 {[%emt 0:0:14]} 43. Qxe4 {[%emt 0:0:6]
} Rc8+ {[%emt 0:0:21]} 44. Kb1 {[%emt 0:0:34]} Rxc1+ {[%emt 0:0:2]} 45. Kxc1 {[%emt 0:0:1]} Qxh6+ {[%emt 0:0:1]} 46. Kb1 {[%emt 0:0:55]} Qd6 {[%emt 0:0:4]
} 47. Qg4 {[%emt 0:0:7]} Qf6 {[%emt 0:0:34]} 48. Kc2 {[%emt 0:0:0]} Qc6+ {[%emt 0:0:25]} 49. Kb3 {[%emt 0:0:13]} Qd6 {[%emt 0:0:18]} 50. Qg5 {[%emt 0:0:30]} h6 {[%emt 0:0:9]} 51. Qh5 {[%emt 0:0:10]} Kg7 {[%emt 0:0:0]} 52. g4 {[%emt 0:0:5]} Qe6+ {[%emt 0:0:21]} 53. Kb4 {[%emt 0:0:1]} Qe1+ {[%emt 0:0:8]} 54. Kc5 {[%emt 0:0:2]} Qc1+ {[%emt 0:0:2]} 55. Kd5 {[%emt 0:0:29]
} Qxb2 {[%emt 0:0:7]} 56. Qe5+ {[%emt 0:0:2]} Kg6 {[%emt 0:0:0]} 57. Qf5+ {[%emt 0:0:5]} Kg7 {[%emt 0:0:2]} 58. Qd7+ {[%emt 0:0:23]
} Kg6 {[%emt 0:0:4]} 59. Qf5+ {[%emt 0:0:10]} Kg7 {[%emt 0:0:2]} 60. Qd7+ {[%emt 0:0:1]} Kg6 {[%emt 0:0:2]} 61. Qe8+ {[%emt 0:0:1]} Kg7 {[%emt 0:0:0]} 62. Qe5+ {[%emt 0:0:27]} Kf7 {[%emt 0:0:17]} 63. Qh5+ {[%emt 0:0:8]
} Kg7 {[%emt 0:0:2]} 64. Qe5+ {[%emt 0:0:10]} Kf7 {[%emt 0:0:3]} 65. Qf4+ {[%emt 0:0:2]} Kg6 {[%emt 0:0:15]} 66. Qf5+ {[%emt 0:0:22]} Kg7 {[%emt 0:0:0]} 67. Qe5+ {[%emt 0:0:9]} Kf7 {[%emt 0:0:6]} 68. Qe6+ {[%emt 0:0:8]
} Kg7 {[%emt 0:0:4]} 69. Qe7+ {[%emt 0:0:15]} 1/2-1/2

[Event "FIDE World Rapid-ch Open 2018"]
[White "Van Foreest, Jorden"]
[Black "Melkumyan, Hrant"]
[Site "St. Petersburg"]
[Round "14.40"]
[Annotator "ChessBase"]
[Result "0-1"]
[Date "2018.12.28"]
[WhiteElo "2614"]
[BlackElo "2670"]
[PlyCount "80"]
[TimeControl "900+10"]

1. e4 {[%emt 0:0:0]} c5 {[%emt 0:0:0]} 2. Nf3 {[%emt 0:0:0]} Nc6 {[%emt 0:0:0]
} 3. Bb5 {[%emt 0:0:0]} g6 {[%emt 0:0:0]} 4. Bxc6 {[%emt 0:0:0]} dxc6 {[%emt 0:0:2]} 5. d3 {[%emt 0:0:8]} Bg7 {[%emt 0:0:3]} 6. h3 {[%emt 0:0:3]} Nf6 {[%emt 0:0:13]} 7. Nc3 {[%emt 0:0:23]} Nd7 {[%emt 0:0:0]} 8. Be3 {[%emt 0:0:10]} e5 {[%emt 0:0:3]} 9. Qd2 {[%emt 0:0:21]} h6 {[%emt 0:0:2]
} 10. 0-0 {[%emt 0:1:45]} Qe7 {[%emt 0:0:10]} 11. a4 {[%emt 0:0:0]} Nf8 {[%emt 0:0:53]} 12. a5 {[%emt 0:0:27]} Ne6 {[%emt 0:0:2]} 13. Na4 {[%emt 0:2:2]} Nd4 {[%emt 0:0:11]} 14. Nh2 {[%emt 0:1:35]} g5 {[%emt 0:0:0]} 15. Rab1 {[%emt 0:2:19]} 0-0 {[%emt 0:1:2]} 16. c3 {[%emt 0:0:4]} Ne6 {[%emt 0:0:4]} 17. b4 {[%emt 0:0:2]} cxb4 {[%emt 0:0:20]} 18. Rxb4 {[%emt 0:0:2]
} Rd8 19. Qe2 {[%emt 0:0:57]} Nf4 {[%emt 0:0:57]} 20. Bxf4 {[%emt 0:0:2]
} exf4 {[%emt 0:0:2]} 21. d4 {[%emt 0:0:9]} Qc7 {[%emt 0:0:0]} 22. e5 {[%emt 0:0:10]} Qxa5 {[%emt 0:0:28]} 23. Nc5 {[%emt 0:0:2]} Qc7 {[%emt 0:0:33]} 24. Ng4 {[%emt 0:0:2]} Bxg4 {[%emt 0:4:9]} 25. hxg4 {[%emt 0:0:22]
} b5 {[%emt 0:0:16]} 26. Ne4 {[%emt 0:0:27]} a5 {[%emt 0:0:2]
} 27. Rbb1 {[%emt 0:0:10]} b4 {[%emt 0:1:4]} 28. Qc4 {[%emt 0:0:42]} Qd7 {[%emt 0:0:26]
} 29. Nd6 {[%emt 0:0:49]} Bf8 {[%emt 0:0:3]} 30. Nf5 {[%emt 0:0:0]} Qe6 {[%emt 0:0:49]} 31. Qd3 {[%emt 0:0:9]} b3 {[%emt 0:0:4]} 32. c4 {[%emt 0:0:22]} a4 {[%emt 0:0:2]} 33. Rfd1 {[%emt 0:1:17]} c5 {[%emt 0:0:0]} 34. Qe2 {[%emt 0:0:42]} cxd4 {[%emt 0:0:16]} 35. Nxd4 {[%emt 0:0:2]
} Rxd4 {[%emt 0:1:24]} 36. Rxd4 {[%emt 0:0:1]} a3 {[%emt 0:0:1]} 37. Kh2 {[%emt 0:1:12]
} a2 {[%emt 0:0:6]} 38. Ra1 {[%emt 0:0:1]} Rb8 {[%emt 0:0:0]} 39. Rd2 {[%emt 0:0:25]} Bg7 {[%emt 0:0:24]} 40. f3 {[%emt 0:0:37]} Qxe5 {[%emt 0:0:14]} 0-1